fUSD/lending_fUSD_20240407
["ID","MTS","AMOUNT","RATE_DAILY","PERIOD"]
[321808725,1712533791181,-500.0,0.00020979,2]
[321808726,1712533791210,-654.97,0.00020979,2]
[321808727,1712533791240,-500.0,0.00020979,2]
[321808728,1712533791269,-500.0,0.00020979,2]
[321808729,1712533791298,-500.0,0.00020979,2]
[321808730,1712533791326,-510.24462743,0.00020979,2]
[321808731,1712533791355,-1838.4,0.00020979,2]
[321808732,1712533791385,-782.81,0.00020979,2]
[321808733,1712533791414,-1838.4,0.00020979,2]
[321808734,1712533791445,-782.81,0.00020979,2]
[321808735,1712533791476,-500.0,0.00020979,2]
[321808736,1712533791507,-500.0,0.00020979,2]
[321808737,1712533791538,-500.0,0.00020979,2]
[321808738,1712533791568,-500.0,0.00020979,2]
[321808739,1712533791598,-505.75752882,0.00020979,2]
[321808740,1712533791629,-500.0,0.00020979,2]
[321808741,1712533791659,-500.0,0.00020979,2]
[321808742,1712533791687,-604.43855931,0.00020979,2]
[321808743,1712533791722,-617.18,0.00020979,2]
[321808744,1712533791752,-617.18,0.00020979,2]
[321808745,1712533791782,-9568.76,0.00020979,2]
[321808746,1712533791813,-500.0,0.00020979,2]
[321808747,1712533791844,-500.0,0.00020979,2]
[321808748,1712533791875,-500.0,0.00020979,2]
[321808749,1712533791905,-500.0,0.00020979,2]
[321808750,1712533791936,-500.0,0.00020979,2]
[321808751,1712533791965,-503.85609939,0.00020979,2]
[321808752,1712533791995,-500.0,0.00020979,2]
[321808753,1712533792024,-500.0,0.00020979,2]
[321808754,1712533792052,-500.0,0.00020979,2]
[321808755,1712533792080,-1750.32,0.00020979,2]
[321808756,1712533792110,-500.0,0.00020979,2]
[321808757,1712533792137,-1750.32,0.00020979,2]
[321808758,1712533792166,-357.9,0.00020979,2]
[321808759,1712533792196,-500.0,0.00020979,2]
[321808760,1712533792225,-1762.59,0.00020979,2]
[321808761,1712533792254,-500.0,0.00020979,2]
[321808762,1712533792286,-523.36,0.00020979,2]
[321808763,1712533792315,-1762.59,0.00020979,2]
[321808764,1712533792344,-523.36,0.00020979,2]
[321808765,1712533792374,-523.36,0.00020979,2]
[321808766,1712533792402,-997.57,0.00020979,2]
[321808767,1712533792431,-500.0,0.00020979,2]
[321808768,1712533792460,-1429.83,0.00020979,2]
[321808769,1712533792489,-1429.83,0.00020979,2]
[321808770,1712533792517,-500.0,0.00020979,2]
[321808771,1712533792545,-500.0,0.00020979,2]
[321808772,1712533792575,-500.0,0.00020979,2]
[321808773,1712533792605,-500.0,0.00020979,2]
[321808774,1712533792633,-697.76,0.00020979,2]
[321808775,1712533792661,-500.0,0.00020979,2]
[321808776,1712533792689,-697.76,0.00020979,2]
[321808777,1712533792720,-500.0,0.00020979,2]
[321808778,1712533792751,-697.76,0.00020979,2]
[321808779,1712533792782,-544.45,0.00020979,2]
[321808780,1712533792813,-500.0,0.00020979,2]
[321808781,1712533792843,-711.43,0.00020979,2]
[321808782,1712533792874,-624.35,0.00020979,2]
[321808783,1712533792904,-711.43,0.00020979,2]
[321808784,1712533792933,-500.0,0.00020979,2]
[321808785,1712533792961,-500.0,0.00020979,2]
[321808786,1712533792990,-500.0,0.00020979,2]
[321808787,1712533793018,-500.0,0.00020979,2]
[321808788,1712533793048,-1194.79,0.00020979,2]
[321808789,1712533793081,-1194.79,0.00020979,2]
[321808790,1712533793110,-950.89,0.00020979,2]
[321808791,1712533793138,-500.0,0.00020979,2]
[321808792,1712533793165,-950.89,0.00020979,2]
[321808793,1712533793192,-500.0,0.00020979,2]
[321808794,1712533793221,-659.25,0.00020979,2]
[321808795,1712533793249,-659.25,0.00020979,2]
[321808796,1712533793278,-659.25,0.00020979,2]
[321808797,1712533793315,-558.34,0.00020979,2]
[321808798,1712533793356,-624.06,0.00020979,2]
[321808799,1712533793399,-624.06,0.00020979,2]
[321808800,1712533793439,-546.56,0.00020979,2]
[321808801,1712533793480,-520.52,0.00020979,2]
[321808802,1712533793521,-546.56,0.00020979,2]
[321808803,1712533793561,-520.52,0.00020979,2]
[321808804,1712533793603,-546.56,0.00020979,2]
[321808805,1712533793645,-520.52,0.00020979,2]
[321808806,1712533793682,-500.0,0.00020979,2]
[321808807,1712533793722,-500.0,0.00020979,2]
[321808808,1712533793760,-909.05,0.00020979,2]
[321808809,1712533793799,-909.05,0.00020979,2]
[321808810,1712533793837,-500.0,0.00020979,2]
[321808811,1712533793885,-500.0,0.00020979,2]
[321808812,1712533793926,-1569.24,0.00020979,2]
[321808813,1712533793967,-1569.24,0.00020979,2]
[321808814,1712533794008,-881.99,0.00020979,2]
[321808815,1712533794049,-500.0,0.00020979,2]
[321808816,1712533794093,-591.49,0.00020979,2]
[321808817,1712533794133,-500.0,0.00020979,2]
[321808818,1712533794173,-591.49,0.00020979,2]
[321808819,1712533794212,-1959.01,0.00020979,2]
[321808820,1712533794251,-500.0,0.00020979,2]
[321808821,1712533794289,-500.0,0.00020979,2]
[321808822,1712533794327,-500.0,0.00020979,2]
[321808823,1712533794369,-523.88769869,0.00020979,2]
[321808824,1712533794409,-1959.01,0.00020979,2]
[321808825,1712533794448,-500.0,0.00020979,2]
[321808826,1712533794485,-500.0,0.00020979,2]
[321808827,1712533794524,-4627.73,0.00020979,2]
[321808828,1712533794563,-1175.86,0.00020979,2]
[321808829,1712533794601,-2039.62,0.00020979,2]
[321808830,1712533794638,-4627.73,0.00020979,2]
[321808831,1712533794677,-1175.86,0.00020979,2]
[321808832,1712533794715,-4627.73,0.00020979,2]
[321808833,1712533794751,-597.24,0.00020979,2]
[321808834,1712533794789,-597.24,0.00020979,2]
[321808835,1712533794826,-1175.86,0.00020979,2]
[321808836,1712533794863,-1148.25,0.00020979,2]
[321808837,1712533794900,-1148.25,0.00020979,2]
[321808838,1712533794939,-1202.2,0.00020979,2]
[321808839,1712533794975,-1202.2,0.00020979,2]
[321808840,1712533795011,-500.0,0.00020979,2]
[321808841,1712533795048,-500.0,0.00020979,2]
[321808842,1712533795084,-630.94,0.00020979,2]
[321808843,1712533795119,-630.94,0.00020979,2]
[321808844,1712533795154,-630.94,0.00020979,2]
[321808845,1712533795189,-453.61023748,0.00020979,2]
[321808846,1712533795226,-2292.62,0.00020979,2]
[321808847,1712533795263,-998.25,0.00020979,2]
[321808848,1712533795299,-998.25,0.00020979,2]
[321808849,1712533795342,-653.02,0.00020979,2]
[321808850,1712533795385,-653.02,0.00020979,2]
[321808851,1712533795424,-500.0,0.00020979,2]
[321808852,1712533795459,-500.0,0.00020979,2]
[321808853,1712533795496,-838.05,0.00020979,2]
[321808854,1712533795532,-838.05,0.00020979,2]
[321808855,1712533795569,-838.05,0.00020979,2]
[321808856,1712533795605,-1719.72,0.00020979,2]
[321808857,1712533795642,-1719.72,0.00020979,2]
[321808858,1712533795678,-500.0,0.00020979,2]
[321808859,1712533795715,-500.0,0.00020979,2]
[321808860,1712533795754,-681.24,0.00020979,2]
[321808861,1712533795792,-670.51,0.00020979,2]
[321808862,1712533795831,-681.24,0.00020979,2]
[321808863,1712533795869,-670.51,0.00020979,2]
[321808864,1712533795907,-791.57,0.00020979,2]
[321808865,1712533795944,-500.0,0.00020979,2]
[321808866,1712533795981,-500.0,0.00020979,2]
[321808867,1712533796021,-500.0,0.00020979,2]
[321808868,1712533796061,-500.0,0.00020979,2]
[321808869,1712533796101,-500.0,0.00020979,2]
[321808870,1712533796141,-500.0,0.00020979,2]
[321808871,1712533796177,-500.0,0.00020979,2]
[321808872,1712533796213,-1392.64,0.00020979,2]
[321808873,1712533796249,-1392.64,0.00020979,2]
[321808874,1712533796284,-1085.69,0.00020979,2]
[321808875,1712533796319,-1085.69,0.00020979,2]
[321808876,1712533796355,-4657.27,0.00020979,2]
[321808877,1712533796390,-4657.27,0.00020979,2]
[321808878,1712533796427,-500.0,0.00020979,2]
[321808879,1712533796469,-500.0,0.00020979,2]
[321808880,1712533796505,-500.0,0.00020979,2]
[321808881,1712533796544,-745.88,0.00020979,2]
[321808882,1712533796583,-500.0,0.00020979,2]
[321808883,1712533796621,-745.88,0.00020979,2]
[321808884,1712533796659,-745.88,0.00020979,2]
[321808885,1712533796699,-235.76,0.00020979,2]
[321808886,1712533796740,-235.76,0.00020979,2]
[321808887,1712533796777,-273.2085137,0.00020979,2]
[321808888,1712533796818,-235.76,0.00020979,2]
[321808889,1712533796858,-2022.0,0.00020979,2]
[321808890,1712533796900,-2022.0,0.00020979,2]
[321808891,1712533796940,-978.15,0.00020979,2]
[321808892,1712533796980,-1419.82,0.00020979,2]
[321808893,1712533797020,-1419.82,0.00020979,2]
[321808894,1712533797060,-1010.81,0.00020979,2]
[321808895,1712533797104,-1010.81,0.00020979,2]
[321808896,1712533797141,-500.0,0.00020979,2]
[321808897,1712533797173,-500.0,0.00020979,2]
[321808898,1712533797206,-500.0,0.00020979,2]
[321808899,1712533797239,-500.0,0.00020979,2]
[321808900,1712533797270,-500.0,0.00020979,2]
[321808901,1712533797304,-500.0,0.00020979,2]
[321808902,1712533797563,-500.0,0.00020979,2]
[321808903,1712533797614,-500.0,0.00020979,2]
[321808904,1712533797648,-850.92,0.00020979,2]
[321808905,1712533797679,-500.0,0.00020979,2]
[321808906,1712533797711,-850.92,0.00020979,2]
[321808907,1712533797742,-1530.21,0.00020979,2]
[321808908,1712533797772,-500.0,0.00020979,2]
[321808909,1712533797806,-850.92,0.00020979,2]
[321808910,1712533797838,-1530.21,0.00020979,2]
[321808911,1712533797869,-500.0,0.00020979,2]
[321808912,1712533797901,-500.0,0.00020979,2]
[321808913,1712533797934,-500.0,0.00020979,2]
[321808914,1712533797965,-500.0,0.00020979,2]
[321808915,1712533797998,-500.0,0.00020979,2]
[321808916,1712533798030,-500.0,0.00020979,2]
[321808917,1712533798062,-500.0,0.00020979,2]
[321808918,1712533798094,-500.0,0.00020979,2]
[321808919,1712533798130,-500.0,0.00020979,2]
[321808920,1712533798162,-500.0,0.00020979,2]
[321808921,1712533798190,-500.0,0.00020979,2]
[321808922,1712533798221,-500.0,0.00020979,2]
[321808923,1712533798250,-500.0,0.00020979,2]
[321808924,1712533798279,-551.19588531,0.00020979,2]
[321808925,1712533798309,-2380.41,0.00020979,2]
[321808926,1712533798339,-2380.41,0.00020979,2]
[321808927,1712533798370,-702.66,0.00020979,2]
[321808928,1712533798399,-702.66,0.00020979,2]
[321808929,1712533798430,-500.0,0.00020979,2]
[321808930,1712533798460,-500.0,0.00020979,2]
[321808931,1712533798489,-592.35,0.00020979,2]
[321808932,1712533798519,-4290.55,0.00020979,2]
[321808933,1712533798548,-592.35,0.00020979,2]
[321808934,1712533798578,-4290.55,0.00020979,2]
[321808935,1712533798610,-4290.55,0.00020979,2]
[321808936,1712533798642,-1311.38,0.00020979,2]
[321808937,1712533798673,-1311.38,0.00020979,2]
[321808938,1712533798706,-582.4,0.00020979,2]
[321808939,1712533798736,-500.0,0.00020979,2]
[321808940,1712533798766,-500.0,0.00020979,2]
[321808941,1712533798803,-500.0,0.00020979,2]
[321808942,1712533798835,-591.33,0.00020979,2]
[321808943,1712533798865,-591.33,0.00020979,2]
[321808944,1712533798896,-500.0,0.00020979,2]
[321808945,1712533798927,-1849.03,0.00020979,2]
[321808946,1712533798957,-500.0,0.00020979,2]
[321808947,1712533798987,-500.0,0.00020979,2]
[321808948,1712533799018,-1849.03,0.00020979,2]
[321808949,1712533799048,-500.0,0.00020979,2]
[321808950,1712533799078,-500.0,0.00020979,2]
[321808951,1712533799109,-500.0,0.00020979,2]
[321808952,1712533799140,-500.0,0.00020979,2]
[321808953,1712533799170,-4039.83,0.00020979,2]
[321808954,1712533799200,-1052.19,0.00020979,2]
[321808955,1712533799233,-1052.19,0.00020979,2]
[321808956,1712533799266,-9008.58,0.00020979,2]
[321808957,1712533799297,-3059.53,0.00020979,2]
[321808958,1712533799328,-3059.53,0.00020979,2]
[321808959,1712533799363,-3059.53,0.00020979,2]
[321808960,1712533799393,-1133.79,0.00020979,2]
[321808961,1712533799423,-1133.79,0.00020979,2]
[321808962,1712533799452,-500.0,0.00020979,2]
[321808963,1712533799487,-510.27223717,0.00020979,2]
[321808964,1712533799518,-500.88,0.00020979,2]
[321808965,1712533799551,-500.0,0.00020979,2]
[321808966,1712533799582,-500.88,0.00020979,2]
[321808967,1712533799612,-500.0,0.00020979,2]
[321808968,1712533799642,-1033.39,0.00020979,2]
[321808969,1712533799671,-1033.39,0.00020979,2]
[321808970,1712533799704,-614.93,0.00020979,2]
[321808971,1712533799733,-614.93,0.00020979,2]
[321808972,1712533799763,-614.93,0.00020979,2]
[321808973,1712533799792,-538.60624321,0.00020979,2]
[321808974,1712533799821,-504.20701097,0.00020979,2]
[321808975,1712533799850,-500.0,0.00020979,2]
[321808976,1712533799882,-500.0,0.00020979,2]
[321808977,1712533799914,-2419.91,0.00020979,2]
[321808978,1712533799943,-552.49,0.00020979,2]
[321808979,1712533799973,-2419.91,0.00020979,2]
[321808980,1712533800003,-552.49,0.00020979,2]
[321808981,1712533800033,-906.44,0.00020979,2]
[321808982,1712533800063,-906.44,0.00020979,2]
[321808983,1712533800093,-634.76,0.00020979,2]
[321808984,1712533800124,-8026.89,0.00020979,2]
[321808985,1712533800153,-634.76,0.00020979,2]
[321808986,1712533800183,-1701.31,0.00020979,2]
[321808987,1712533800213,-8026.89,0.00020979,2]
[321808988,1712533800241,-500.75,0.00020979,2]
[321808989,1712533800273,-8026.89,0.00020979,2]
[321808990,1712533800306,-500.75,0.00020979,2]
[321808991,1712533800336,-783.37,0.00020979,2]
[321808992,1712533800365,-783.37,0.00020979,2]
[321808993,1712533800395,-500.0,0.00020979,2]
[321808994,1712533800424,-500.0,0.00020979,2]
[321808995,1712533800454,-1058.67,0.00020979,2]
[321808996,1712533800484,-1058.67,0.00020979,2]
[321808997,1712533800513,-1058.67,0.00020979,2]
[321808998,1712533800548,-500.0,0.00020979,2]
[321808999,1712533800580,-500.0,0.00020979,2]
[321809000,1712533800614,-4234.78,0.00020979,2]
[321809001,1712533800649,-4234.78,0.00020979,2]
[321809002,1712533800682,-665.48,0.00020979,2]
[321809003,1712533800714,-500.0,0.00020979,2]
[321809004,1712533800746,-4234.78,0.00020979,2]
[321809005,1712533800777,-696.77,0.00020979,2]
[321809006,1712533800808,-665.48,0.00020979,2]
[321809007,1712533800839,-500.0,0.00020979,2]
[321809008,1712533800869,-696.77,0.00020979,2]
[321809009,1712533800900,-1437.14,0.00020979,2]
[321809010,1712533800931,-665.48,0.00020979,2]
[321809011,1712533800962,-502.91,0.00020979,2]
[321809012,1712533800991,-502.91,0.00020979,2]
[321809013,1712533801020,-500.0,0.00020979,2]
[321809014,1712533801049,-500.0,0.00020979,2]
[321809015,1712533801078,-1192.67,0.00020979,2]
[321809016,1712533801108,-1192.67,0.00020979,2]
[321809017,1712533801138,-615.97,0.00020979,2]
[321809018,1712533801167,-615.97,0.00020979,2]
[321809019,1712533801198,-3222.2,0.00020979,2]
[321809020,1712533801227,-3170.17,0.00020979,2]
[321809021,1712533801256,-500.0,0.00020979,2]
[321809022,1712533801286,-656.72,0.00020979,2]
[321809023,1712533801315,-500.0,0.00020979,2]
[321809024,1712533801344,-656.72,0.00020979,2]
[321809025,1712533801377,-335.85885449,0.00020979,2]
[321809026,1712533801409,-3170.17,0.00020979,2]
[321809027,1712533801438,-500.0,0.00020979,2]
[321809028,1712533801468,-3170.17,0.00020979,2]
[321809029,1712533801497,-500.0,0.00020979,2]
[321809030,1712533801526,-431.2557594,0.00020979,2]
[321809031,1712533801554,-583.88058631,0.00020979,2]
[321809032,1712533801583,-595.09,0.00020979,2]
[321809033,1712533801613,-595.09,0.00020979,2]
[321809034,1712533801642,-1472.89,0.00020979,2]
[321809035,1712533801670,-1472.89,0.00020979,2]
[321809036,1712533801700,-887.64,0.00020979,2]
[321809037,1712533801731,-887.64,0.00020979,2]
[321809038,1712533801761,-500.0,0.00020979,2]
[321809039,1712533801791,-500.0,0.00020979,2]
[321809040,1712533801821,-500.0,0.00020979,2]
[321809041,1712533802072,-500.0,0.00020979,2]
[321809042,1712533802104,-500.0,0.00020979,2]
[321809043,1712533802135,-514.12104631,0.00020979,2]
[321809044,1712533802165,-1431.08,0.00020979,2]
[321809045,1712533802194,-1431.08,0.00020979,2]
[321809046,1712533802224,-861.24,0.00020979,2]
[321809047,1712533802253,-1718.25,0.00020979,2]
[321809048,1712533802282,-861.24,0.00020979,2]
[321809049,1712533802312,-500.0,0.00020979,2]
[321809050,1712533802344,-500.0,0.00020979,2]
[321809051,1712533802375,-500.0,0.00020979,2]
[321809052,1712533802404,-500.0,0.00020979,2]
[321809053,1712533802433,-500.0,0.00020979,2]
[321809054,1712533802462,-500.0,0.00020979,2]
[321809055,1712533802495,-2148.37,0.00020979,2]
[321809056,1712533802523,-2148.37,0.00020979,2]
[321809057,1712533802553,-2148.37,0.00020979,2]
[321809058,1712533802581,-1523.62,0.00020979,2]
[321809059,1712533802611,-500.0,0.00020979,2]
[321809060,1712533802641,-1523.62,0.00020979,2]
[321809061,1712533802670,-500.0,0.00020979,2]
[321809062,1712533802700,-500.0,0.00020979,2]
[321809063,1712533802732,-561.37,0.00020979,2]
[321809064,1712533802765,-561.37,0.00020979,2]
[321809065,1712533802796,-561.37,0.00020979,2]
[321809066,1712533802827,-731.92,0.00020979,2]
[321809067,1712533802860,-731.92,0.00020979,2]
[321809068,1712533802898,-1493.66,0.00020979,2]
[321809069,1712533802932,-1493.66,0.00020979,2]
[321809070,1712533802963,-500.0,0.00020979,2]
[321809071,1712533802998,-1353.03,0.00020979,2]
[321809072,1712533803030,-500.0,0.00020979,2]
[321809073,1712533803063,-1236.59,0.00020979,2]
[321809074,1712533803093,-1353.03,0.00020979,2]
[321809075,1712533803124,-1236.59,0.00020979,2]
[321809076,1712533803154,-500.0,0.00020979,2]
[321809077,1712533803184,-500.0,0.00020979,2]
[321809078,1712533803213,-500.0,0.00020979,2]
[321809079,1712533803243,-500.0,0.00020979,2]
[321809080,1712533803272,-500.0,0.00020979,2]
[321809081,1712533803303,-500.0,0.00020979,2]
[321809082,1712533803337,-1663.55,0.00020979,2]
[321809083,1712533803368,-1540.81,0.00020979,2]
[321809084,1712533803398,-500.0,0.00020979,2]
[321809085,1712533803429,-574.60325051,0.00020979,2]
[321809086,1712533803461,-9792.29,0.00020979,2]
[321809087,1712533803492,-9792.29,0.00020979,2]
[321809088,1712533803523,-9792.29,0.00020979,2]
[321809089,1712533803557,-1488.54,0.00020979,2]
[321809090,1712533803589,-500.0,0.00020979,2]
[321809091,1712533803621,-1488.54,0.00020979,2]
[321809092,1712533803655,-500.0,0.00020979,2]
[321809093,1712533803688,-500.0,0.00020979,2]
[321809094,1712533803725,-500.0,0.00020979,2]
[321809095,1712533803767,-500.0,0.00020979,2]
[321809096,1712533803804,-500.0,0.00020979,2]
[321809097,1712533803842,-500.0,0.00020979,2]
[321809098,1712533803882,-500.0,0.00020979,2]
[321809099,1712533803917,-500.0,0.00020979,2]
[321809100,1712533803951,-500.0,0.00020979,2]
[321809101,1712533803986,-366.05519204,0.00020979,2]
[321809102,1712533804021,-2144.48,0.00020979,2]
[321809103,1712533804058,-2144.48,0.00020979,2]
[321809104,1712533804092,-1366.76,0.00020979,2]
[321809105,1712533804128,-1366.76,0.00020979,2]
[321809106,1712533804163,-500.0,0.00020979,2]
[321809107,1712533804195,-285.36050191,0.00020979,2]
[321809108,1712533804226,-500.0,0.00020979,2]
[321809109,1712533804256,-500.0,0.00020979,2]
[321809110,1712533804289,-500.0,0.00020979,2]
[321809111,1712533804322,-412.70069592,0.00020979,2]
[321809112,1712533804354,-1594.52,0.00020979,2]
[321809113,1712533804386,-632.73,0.00020979,2]
[321809114,1712533804418,-500.0,0.00020979,2]
[321809115,1712533804449,-500.0,0.00020979,2]
[321809116,1712533804479,-632.73,0.00020979,2]
[321809117,1712533804507,-500.0,0.00020979,2]
[321809118,1712533804537,-1295.12,0.00020979,2]
[321809119,1712533804566,-500.0,0.00020979,2]
[321809120,1712533804595,-1295.12,0.00020979,2]
[321809121,1712533804626,-2448.01,0.00020979,2]
[321809122,1712533804657,-887.04,0.00020979,2]
[321809123,1712533804685,-887.04,0.00020979,2]
[321809124,1712533804715,-500.0,0.00020979,2]
[321809125,1712533804745,-528.94797017,0.00020979,2]
[321809126,1712533804777,-1482.14,0.00020979,2]
[321809127,1712533804811,-1221.95,0.00020979,2]
[321809128,1712533804843,-1482.14,0.00020979,2]
[321809129,1712533804875,-1221.95,0.00020979,2]
[321809130,1712533804908,-500.0,0.00020979,2]
[321809131,1712533804940,-500.0,0.00020979,2]
[321809132,1712533804972,-1221.95,0.00020979,2]
[321809133,1712533805005,-2601.87,0.00020979,2]
[321809134,1712533805042,-2601.87,0.00020979,2]
[321809135,1712533805074,-500.0,0.00020979,2]
[321809136,1712533805106,-500.0,0.00020979,2]
[321809137,1712533805144,-500.0,0.00020979,2]
[321809138,1712533805177,-1429.12,0.00020979,2]
[321809139,1712533805210,-500.0,0.00020979,2]
[321809140,1712533805242,-500.0,0.00020979,2]
[321809141,1712533805274,-500.0,0.00020979,2]
[321809142,1712533805309,-500.0,0.00020979,2]
[321809143,1712533805340,-500.0,0.00020979,2]
[321809144,1712533805369,-511.31727015,0.00020979,2]
[321809145,1712533805398,-1410.83,0.00020979,2]
[321809146,1712533805428,-500.0,0.00020979,2]
[321809147,1712533805458,-1410.83,0.00020979,2]
[321809148,1712533805487,-500.0,0.00020979,2]
[321809149,1712533805519,-580.84,0.00020979,2]
[321809150,1712533805549,-580.84,0.00020979,2]
[321809151,1712533805658,-500.0,0.00020979,2]
[321809152,1712533805693,-500.0,0.00020979,2]
[321809153,1712533805731,-2699.19,0.00020979,2]
[321809154,1712533805766,-2699.19,0.00020979,2]
[321809155,1712533805799,-1079.12,0.00020979,2]
[321809156,1712533805832,-1079.12,0.00020979,2]
[321809157,1712533805864,-1297.45,0.00020979,2]
[321809158,1712533805897,-1297.45,0.00020979,2]
[321809159,1712533805930,-3108.36,0.00020979,2]
[321809160,1712533805961,-1404.61,0.00020979,2]
[321809161,1712533805993,-3108.36,0.00020979,2]
[321809162,1712533806023,-1404.61,0.00020979,2]
[321809163,1712533806053,-1404.61,0.00020979,2]
[321809164,1712533806083,-500.0,0.00020979,2]
[321809165,1712533806113,-500.0,0.00020979,2]
[321809166,1712533806142,-500.0,0.00020979,2]
[321809167,1712533806171,-500.0,0.00020979,2]
[321809168,1712533806206,-500.0,0.00020979,2]
[321809169,1712533806236,-1116.79,0.00020979,2]
[321809170,1712533806265,-391.57819676,0.00020979,2]
[321809171,1712533806295,-500.0,0.00020979,2]
[321809172,1712533806325,-1149.2,0.00020979,2]
[321809173,1712533806355,-1149.2,0.00020979,2]
[321809174,1712533806387,-500.0,0.00020979,2]
[321809175,1712533806418,-522.38,0.00020979,2]
[321809176,1712533806450,-2848.04,0.00020979,2]
[321809177,1712533806480,-500.0,0.00020979,2]
[321809178,1712533806513,-2848.04,0.00020979,2]
[321809179,1712533806545,-514.75595283,0.00020979,2]
[321809180,1712533806578,-676.89,0.00020979,2]
[321809181,1712533806610,-676.89,0.00020979,2]
[321809182,1712533806640,-500.0,0.00020979,2]
[321809183,1712533806670,-500.0,0.00020979,2]
[321809184,1712533806703,-500.0,0.00020979,2]
[321809185,1712533806735,-500.0,0.00020979,2]
[321809186,1712533806766,-2312.44,0.00020979,2]
[321809187,1712533806795,-500.0,0.00020979,2]
[321809188,1712533806826,-500.0,0.00020979,2]
[321809189,1712533806855,-500.0,0.00020979,2]
[321809190,1712533806888,-315.29044524,0.00020979,2]
[321809191,1712533806918,-247.16046564,0.00020979,2]
[321809192,1712533806947,-500.0,0.00020979,2]
[321809193,1712533806976,-500.0,0.00020979,2]
[321809194,1712533807005,-1122.81,0.00020979,2]
[321809195,1712533807032,-500.0,0.00020979,2]
[321809196,1712533807060,-1122.81,0.00020979,2]
[321809197,1712533807089,-500.0,0.00020979,2]
[321809198,1712533807120,-500.0,0.00020979,2]
[321809199,1712533807153,-509.52263206,0.00020979,2]
[321809200,1712533807181,-3414.14,0.00020979,2]
[321809201,1712533807209,-3414.14,0.00020979,2]
[321809202,1712533807237,-1411.16,0.00020979,2]
[321809203,1712533807265,-1411.16,0.00020979,2]
[321809204,1712533807293,-500.0,0.00020979,2]
[321809205,1712533807320,-1665.11,0.00020979,2]
[321809206,1712533807349,-500.0,0.00020979,2]
[321809207,1712533807380,-500.0,0.00020979,2]
[321809208,1712533807408,-1665.11,0.00020979,2]
[321809209,1712533807437,-539.70690276,0.00020979,2]
[321809210,1712533807467,-500.0,0.00020979,2]
[321809211,1712533807497,-642.56300962,0.00020979,2]
[321809212,1712533807527,-500.0,0.00020979,2]
[321809213,1712533807558,-1102.77,0.00020979,2]
[321809214,1712533807588,-500.0,0.00020979,2]
[321809215,1712533807618,-500.0,0.00020979,2]
[321809216,1712533807652,-1152.59,0.00020979,2]
[321809217,1712533807682,-500.0,0.00020979,2]
[321809218,1712533807713,-1152.59,0.00020979,2]
[321809219,1712533807742,-500.0,0.00020979,2]
[321809220,1712533807773,-500.0,0.00020979,2]
[321809221,1712533807803,-500.0,0.00020979,2]
[321809222,1712533807834,-1462.93,0.00020979,2]
[321809223,1712533807865,-536.62,0.00020979,2]
[321809224,1712533807896,-1462.93,0.00020979,2]